[Event "*** Titled Tuesday Blitz"]
[Site "Chess.com"]
[Date "2021.04.27"]
[Round "8"]
[White "politeplayer"]
[Black "Poghosyan_Suren"]
[Result "1-0"]
[WhiteElo "2250"]
[BlackElo "2328"]
[TimeControl "180+1"]
[EndTime "11:24:39 PDT"]
[Termination "politeplayer won by checkmate"]

1. e4 {[%clk 0:03:00.9]} 1... c5 {[%clk 0:02:58.9]} 2. c3 {[%clk 0:02:58.9]}
2... d5 {[%clk 0:02:58.7]} 3. exd5 {[%clk 0:02:59.1]} 3... Qxd5 {[%clk
0:02:59.6]} 4. d4 {[%clk 0:02:59.3]} 4... Nf6 {[%clk 0:02:59.7]} 5. Nf3 {[%clk
0:02:59.2]} 5... e6 {[%clk 0:02:59.5]} 6. Na3 {[%clk 0:02:52.4]} 6... cxd4
{[%clk 0:02:58.9]} 7. Nb5 {[%clk 0:02:50.4]} 7... Qd8 {[%clk 0:02:58.9]} 8.
Nbxd4 {[%clk 0:02:28.9]} 8... Be7 {[%clk 0:02:58.1]} 9. Bd3 {[%clk 0:02:23.8]}
9... h6 {[%clk 0:02:57.3]} 10. O-O {[%clk 0:02:22.9]} 10... O-O {[%clk
0:02:57.5]} 11. Bf4 {[%clk 0:02:12.9]} 11... b6 {[%clk 0:02:53.4]} 12. Qd2
{[%clk 0:02:05.8]} 12... Nd5 {[%clk 0:02:44.3]} 13. Bxh6 {[%clk 0:01:54.1]}
13... f5 {[%clk 0:02:24.9]} 14. Bg5 {[%clk 0:01:40.6]} 14... Bb7 {[%clk
0:02:13.7]} 15. Rfe1 {[%clk 0:01:32.8]} 15... Bxg5 {[%clk 0:02:04.3]} 16. Nxg5
{[%clk 0:01:30.7]} 16... e5 {[%clk 0:01:56.7]} 17. Nde6 {[%clk 0:01:26.7]} 17...
Qf6 {[%clk 0:01:51.1]} 18. Bc4 {[%clk 0:01:12.3]} 18... Ne7 {[%clk 0:01:10.1]}
19. Nxf8+ {[%clk 0:01:07.7]} 19... Kxf8 {[%clk 0:01:09.3]} 20. Qd8# {[%clk
0:01:05.4]} 1-0

[Event "*** Titled Tuesday Blitz"]
[Site "Chess.com"]
[Date "2021.04.27"]
[Round "8"]
[White "Cambek64"]
[Black "H3nriqueTV"]
[Result "1-0"]
[WhiteElo "2485"]
[BlackElo "2315"]
[TimeControl "180+1"]
[EndTime "11:24:51 PDT"]
[Termination "Cambek64 won by resignation"]

1. e4 {[%clk 0:02:55.7]} 1... c5 {[%clk 0:02:59.7]} 2. Nc3 {[%clk 0:02:54.9]}
2... d6 {[%clk 0:02:59]} 3. Bc4 {[%clk 0:02:53.3]} 3... g6 {[%clk 0:02:55.2]} 4.
f4 {[%clk 0:02:53]} 4... Bg7 {[%clk 0:02:54.8]} 5. Nf3 {[%clk 0:02:53.7]} 5...
e6 {[%clk 0:02:55.5]} 6. O-O {[%clk 0:02:53.9]} 6... Nc6 {[%clk 0:02:56.1]} 7.
d3 {[%clk 0:02:53.1]} 7... Nd4 {[%clk 0:02:56.1]} 8. a3 {[%clk 0:02:51]} 8...
Ne7 {[%clk 0:02:55.9]} 9. Ba2 {[%clk 0:02:50.1]} 9... O-O {[%clk 0:02:56.1]} 10.
Ne2 {[%clk 0:02:48.8]} 10... b5 {[%clk 0:02:55]} 11. Nexd4 {[%clk 0:02:44.9]}
11... cxd4 {[%clk 0:02:54.1]} 12. Bd2 {[%clk 0:02:42.6]} 12... a5 {[%clk
0:02:52.5]} 13. Qe1 {[%clk 0:02:41.8]} 13... Bb7 {[%clk 0:02:51.9]} 14. Qh4
{[%clk 0:02:40.1]} 14... Qc7 {[%clk 0:02:49.3]} 15. Rac1 {[%clk 0:02:38.8]}
15... d5 {[%clk 0:02:44.5]} 16. Rfe1 {[%clk 0:02:30.9]} 16... dxe4 {[%clk
0:02:37.8]} 17. dxe4 {[%clk 0:02:30.7]} 17... Rfe8 {[%clk 0:02:32.2]} 18. Ng5
{[%clk 0:02:27.6]} 18... h6 {[%clk 0:02:32.2]} 19. Nf3 {[%clk 0:02:14.2]} 19...
Rac8 {[%clk 0:02:31.5]} 20. h3 {[%clk 0:02:08.9]} 20... Qb6 {[%clk 0:02:31]} 21.
Kh1 {[%clk 0:02:07.8]} 21... b4 {[%clk 0:01:50.9]} 22. a4 {[%clk 0:02:05.3]}
22... Bc6 {[%clk 0:01:45.7]} 23. Bb3 {[%clk 0:02:04.2]} 23... Qb7 {[%clk
0:01:46]} 24. f5 {[%clk 0:01:47.4]} 24... exf5 {[%clk 0:01:44.8]} 25. Bxh6
{[%clk 0:01:44.6]} 25... Bxe4 {[%clk 0:01:42.4]} 26. Ng5 {[%clk 0:01:41.6]}
26... Bxg2+ {[%clk 0:01:31.6]} 27. Kg1 {[%clk 0:01:31.7]} 27... Bf6 {[%clk
0:01:13.7]} 28. Bxf7+ {[%clk 0:01:29.9]} 28... Kh8 {[%clk 0:01:03.7]} 1-0

[Event "*** Titled Tuesday Blitz"]
[Site "Chess.com"]
[Date "2021.04.27"]
[Round "8"]
[White "sorrm8thatscheckm8"]
[Black "WPWPWP-2015"]
[Result "1-0"]
[WhiteElo "2563"]
[BlackElo "2414"]
[TimeControl "180+1"]
[EndTime "11:24:59 PDT"]
[Termination "sorrm8thatscheckm8 won by resignation"]

1. d4 {[%clk 0:02:59.2]} 1... Nf6 {[%clk 0:02:59.1]} 2. c4 {[%clk 0:02:58.9]}
2... e6 {[%clk 0:02:58]} 3. Nf3 {[%clk 0:02:59.2]} 3... c5 {[%clk 0:02:54.1]} 4.
d5 {[%clk 0:02:59.2]} 4... exd5 {[%clk 0:02:53.8]} 5. cxd5 {[%clk 0:02:58.9]}
5... d6 {[%clk 0:02:54.7]} 6. e4 {[%clk 0:02:59.5]} 6... g6 {[%clk 0:02:54.8]}
7. Bd3 {[%clk 0:03:00.2]} 7... Bg7 {[%clk 0:02:54.7]} 8. h3 {[%clk 0:03:01]}
8... O-O {[%clk 0:02:54.6]} 9. O-O {[%clk 0:03:01.7]} 9... Re8 {[%clk 0:02:55]}
10. Re1 {[%clk 0:03:01.5]} 10... Nfd7 {[%clk 0:02:55]} 11. Nbd2 {[%clk
0:03:00.6]} 11... Ne5 {[%clk 0:02:54.6]} 12. Nxe5 {[%clk 0:03:00.1]} 12... Bxe5
{[%clk 0:02:53.4]} 13. Nc4 {[%clk 0:03:00.7]} 13... Nd7 {[%clk 0:02:47]} 14.
Nxe5 {[%clk 0:02:56.8]} 14... Nxe5 {[%clk 0:02:30.7]} 15. Bc2 {[%clk 0:02:57.7]}
15... Qh4 {[%clk 0:02:11.2]} 16. f4 {[%clk 0:02:57.1]} 16... Nc4 {[%clk
0:02:05.9]} 17. b3 {[%clk 0:02:55.7]} 17... Nb6 {[%clk 0:02:00.6]} 18. Bb2
{[%clk 0:02:37.4]} 18... Bxh3 {[%clk 0:01:55.9]} 19. gxh3 {[%clk 0:02:35.2]}
19... Qg3+ {[%clk 0:01:55.9]} 20. Kf1 {[%clk 0:02:02.9]} 20... Qxh3+ {[%clk
0:01:49.2]} 21. Ke2 {[%clk 0:01:58.4]} 21... Qg2+ {[%clk 0:01:35.3]} 22. Ke3
{[%clk 0:01:54.3]} 22... Nxd5+ {[%clk 0:01:06.2]} 23. Qxd5 {[%clk 0:01:45.7]}
23... Qxc2 {[%clk 0:01:05.8]} 24. Re2 {[%clk 0:01:43.3]} 24... Rxe4+ {[%clk
0:00:28.9]} 25. Qxe4 {[%clk 0:01:40.1]} 25... Qc3+ {[%clk 0:00:27]} 26. Bxc3
{[%clk 0:01:39.6]} 1-0

[Event "*** Titled Tuesday Blitz"]
[Site "Chess.com"]
[Date "2021.04.27"]
[Round "8"]
[White "profofchess"]
[Black "Piotrek1979"]
[Result "0-1"]
[WhiteElo "2469"]
[BlackElo "2357"]
[TimeControl "180+1"]
[EndTime "11:25:04 PDT"]
[Termination "Piotrek1979 won by resignation"]

1. e4 {[%clk 0:03:00.9]} 1... c5 {[%clk 0:02:59]} 2. Nf3 {[%clk 0:03:00.5]} 2...
Nc6 {[%clk 0:02:58.2]} 3. Bb5 {[%clk 0:02:59.9]} 3... d6 {[%clk 0:02:52.9]} 4.
Bxc6+ {[%clk 0:02:59.6]} 4... bxc6 {[%clk 0:02:51.9]} 5. e5 {[%clk 0:03:00.5]}
5... f6 {[%clk 0:02:35.2]} 6. exd6 {[%clk 0:02:58.8]} 6... exd6 {[%clk
0:02:34.5]} 7. O-O {[%clk 0:02:53.4]} 7... d5 {[%clk 0:02:32.6]} 8. Re1+ {[%clk
0:02:51.5]} 8... Kf7 {[%clk 0:02:32]} 9. d3 {[%clk 0:02:25]} 9... Bd6 {[%clk
0:02:30.2]} 10. Nbd2 {[%clk 0:02:23.9]} 10... Ne7 {[%clk 0:02:28.5]} 11. h3
{[%clk 0:02:18.4]} 11... Ng6 {[%clk 0:02:22.9]} 12. Nb3 {[%clk 0:02:17.9]} 12...
h5 {[%clk 0:01:49.7]} 13. Be3 {[%clk 0:01:41.2]} 13... d4 {[%clk 0:01:49.1]} 14.
Bd2 {[%clk 0:01:41.1]} 14... Be6 {[%clk 0:01:33.2]} 15. c3 {[%clk 0:01:02.6]}
15... Qd7 {[%clk 0:01:31.6]} 16. cxd4 {[%clk 0:00:57.6]} 16... Bxh3 {[%clk
0:01:29.1]} 17. gxh3 {[%clk 0:00:30.1]} 17... Qxh3 {[%clk 0:01:30]} 18. dxc5
{[%clk 0:00:25.6]} 18... Nh4 {[%clk 0:01:27.9]} 19. Nxh4 {[%clk 0:00:22.3]}
19... Bh2+ {[%clk 0:01:27.3]} 20. Kh1 {[%clk 0:00:21.9]} 20... Bg3+ {[%clk
0:01:27.2]} 21. Kg1 {[%clk 0:00:22.2]} 21... Qh2+ {[%clk 0:01:27.1]} 0-1

[Event "*** Titled Tuesday Blitz"]
[Site "Chess.com"]
[Date "2021.04.27"]
[Round "8"]
[White "kakorrhaphiophobie"]
[Black "david_alex"]
[Result "0-1"]
[WhiteElo "2292"]
[BlackElo "2122"]
[TimeControl "180+1"]
[EndTime "11:25:06 PDT"]
[Termination "david_alex won by resignation"]

1. d4 {[%clk 0:03:00.9]} 1... Nf6 {[%clk 0:03:00.1]} 2. c4 {[%clk 0:02:59.4]}
2... e6 {[%clk 0:03:00.6]} 3. Nf3 {[%clk 0:02:59]} 3... d5 {[%clk 0:03:00.5]} 4.
Nc3 {[%clk 0:02:57.8]} 4... Nbd7 {[%clk 0:03:00.8]} 5. Bf4 {[%clk 0:02:56.9]}
5... dxc4 {[%clk 0:02:59.3]} 6. e3 {[%clk 0:02:48.8]} 6... a6 {[%clk 0:02:58.7]}
7. Bxc4 {[%clk 0:02:47.1]} 7... b5 {[%clk 0:02:58.2]} 8. Bd3 {[%clk 0:02:45.4]}
8... Bb7 {[%clk 0:02:58.8]} 9. O-O {[%clk 0:02:43]} 9... c5 {[%clk 0:02:59.5]}
10. a4 {[%clk 0:02:35]} 10... b4 {[%clk 0:02:55]} 11. Nb1 {[%clk 0:02:23.8]}
11... cxd4 {[%clk 0:02:42.4]} 12. exd4 {[%clk 0:02:18.4]} 12... Nb6 {[%clk
0:02:39]} 13. a5 {[%clk 0:02:14.9]} 13... Nbd5 {[%clk 0:02:38.7]} 14. Bg3 {[%clk
0:01:58.2]} 14... Bd6 {[%clk 0:02:38.6]} 15. Qa4+ {[%clk 0:01:50.8]} 15... Qd7
{[%clk 0:02:12.2]} 16. Qxd7+ {[%clk 0:00:57]} 16... Kxd7 {[%clk 0:02:13.1]} 17.
Bxd6 {[%clk 0:00:57.4]} 17... Kxd6 {[%clk 0:02:13.7]} 18. Nbd2 {[%clk 0:00:58]}
18... Rhc8 {[%clk 0:02:06.4]} 19. Nc4+ {[%clk 0:00:56.9]} 19... Ke7 {[%clk
0:02:05.5]} 20. Nfe5 {[%clk 0:00:52.8]} 20... Rc7 {[%clk 0:02:02.3]} 21. h3
{[%clk 0:00:49.2]} 21... Nf4 {[%clk 0:01:57.5]} 22. g3 {[%clk 0:00:26.1]} 22...
Nxd3 {[%clk 0:01:54]} 23. Nxd3 {[%clk 0:00:25.8]} 23... Rxc4 {[%clk 0:01:52.8]}
24. Nc5 {[%clk 0:00:25.9]} 24... Bd5 {[%clk 0:01:49.4]} 25. Rfd1 {[%clk
0:00:24.4]} 25... Rc2 {[%clk 0:01:45.7]} 26. b3 {[%clk 0:00:23.6]} 26... Ne4
{[%clk 0:01:44.2]} 27. Nxe4 {[%clk 0:00:23.6]} 27... Bxe4 {[%clk 0:01:44.5]} 28.
Ra4 {[%clk 0:00:24.3]} 28... Rb8 {[%clk 0:01:44]} 0-1

[Event "*** Titled Tuesday Blitz"]
[Site "Chess.com"]
[Date "2021.04.27"]
[Round "8"]
[White "KuzubovYuriy"]
[Black "WildBizon"]
[Result "1-0"]
[WhiteElo "2860"]
[BlackElo "2661"]
[TimeControl "180+1"]
[EndTime "11:25:11 PDT"]
[Termination "KuzubovYuriy won by checkmate"]

1. d4 {[%clk 0:03:00.9]} 1... Nf6 {[%clk 0:02:59.1]} 2. Nf3 {[%clk 0:03:01.8]}
2... b6 {[%clk 0:02:56.3]} 3. g3 {[%clk 0:03:00.8]} 3... Bb7 {[%clk 0:02:56.4]}
4. Bg2 {[%clk 0:03:01.3]} 4... g6 {[%clk 0:02:57]} 5. c4 {[%clk 0:03:01.1]} 5...
Bg7 {[%clk 0:02:57.5]} 6. O-O {[%clk 0:02:58.8]} 6... O-O {[%clk 0:02:57.3]} 7.
d5 {[%clk 0:02:57.9]} 7... Ne4 {[%clk 0:02:57.1]} 8. Nd4 {[%clk 0:02:57.9]} 8...
Nd6 {[%clk 0:02:48.1]} 9. b3 {[%clk 0:02:55.9]} 9... c5 {[%clk 0:02:43.9]} 10.
Nc2 {[%clk 0:02:53.7]} 10... Bxa1 {[%clk 0:02:42.9]} 11. Nxa1 {[%clk 0:02:54.6]}
11... b5 {[%clk 0:02:40.5]} 12. e4 {[%clk 0:02:53.3]} 12... f6 {[%clk
0:02:36.1]} 13. Bf4 {[%clk 0:02:50.4]} 13... bxc4 {[%clk 0:02:33.2]} 14. Bxd6
{[%clk 0:02:50.6]} 14... exd6 {[%clk 0:02:33.5]} 15. bxc4 {[%clk 0:02:51.1]}
15... Qa5 {[%clk 0:02:25.5]} 16. Nc2 {[%clk 0:02:45]} 16... Qxa2 {[%clk
0:02:19.1]} 17. Ne3 {[%clk 0:02:45.2]} 17... Qb2 {[%clk 0:02:11]} 18. h4 {[%clk
0:02:41.1]} 18... a5 {[%clk 0:02:07.1]} 19. h5 {[%clk 0:02:41.4]} 19... a4
{[%clk 0:02:04.9]} 20. Qg4 {[%clk 0:02:39.5]} 20... Kf7 {[%clk 0:02:04.7]} 21.
hxg6+ {[%clk 0:02:37.2]} 21... hxg6 {[%clk 0:02:04.7]} 22. Qh4 {[%clk
0:02:33.3]} 22... Kg7 {[%clk 0:01:42]} 23. Na3 {[%clk 0:02:13.1]} 23... Qxa3
{[%clk 0:01:14.7]} 24. Ng4 {[%clk 0:02:12.8]} 24... Qb2 {[%clk 0:01:01.8]} 25.
Qh6+ {[%clk 0:02:12.4]} 25... Kf7 {[%clk 0:01:02.1]} 26. Qh7+ {[%clk 0:02:09.4]}
26... Ke8 {[%clk 0:01:02.3]} 27. Qxg6+ {[%clk 0:02:04.9]} 27... Kd8 {[%clk
0:00:58.3]} 28. e5 {[%clk 0:02:05.3]} 28... dxe5 {[%clk 0:00:49.1]} 29. Rb1
{[%clk 0:02:04.9]} 29... Qd4 {[%clk 0:00:37.3]} 30. Qg7 {[%clk 0:01:55.1]} 30...
Re8 {[%clk 0:00:31.9]} 31. Qxf6+ {[%clk 0:01:48.3]} 31... Kc8 {[%clk 0:00:32.1]}
32. Qb6 {[%clk 0:01:48.1]} 32... Ba6 {[%clk 0:00:29.6]} 33. d6 {[%clk
0:01:45.6]} 33... e4 {[%clk 0:00:29.8]} 34. Qc7# {[%clk 0:01:45.6]} 1-0

[Event "*** Titled Tuesday Blitz"]
[Site "Chess.com"]
[Date "2021.04.27"]
[Round "8"]
[White "suyu28"]
[Black "superchess02"]
[Result "0-1"]
[WhiteElo "2632"]
[BlackElo "2791"]
[TimeControl "180+1"]
[EndTime "11:25:11 PDT"]
[Termination "superchess02 won by resignation"]

1. d4 {[%clk 0:02:57.9]} 1... Nf6 {[%clk 0:02:59.9]} 2. c4 {[%clk 0:02:56.2]}
2... e6 {[%clk 0:03:00.8]} 3. Nf3 {[%clk 0:02:55.8]} 3... b6 {[%clk 0:03:01.4]}
4. Nc3 {[%clk 0:02:53.4]} 4... Bb7 {[%clk 0:03:00.7]} 5. a3 {[%clk 0:02:53.2]}
5... Be7 {[%clk 0:03:00.4]} 6. Bg5 {[%clk 0:02:52.6]} 6... O-O {[%clk
0:03:00.6]} 7. Bxf6 {[%clk 0:02:49.4]} 7... Bxf6 {[%clk 0:03:00.5]} 8. e4 {[%clk
0:02:50.1]} 8... d6 {[%clk 0:03:01.1]} 9. Bd3 {[%clk 0:02:50.1]} 9... Nd7 {[%clk
0:03:01]} 10. Qe2 {[%clk 0:02:49.7]} 10... c5 {[%clk 0:02:58.6]} 11. d5 {[%clk
0:02:28.6]} 11... Bxc3+ {[%clk 0:02:57.9]} 12. bxc3 {[%clk 0:02:28.5]} 12...
exd5 {[%clk 0:02:58.8]} 13. cxd5 {[%clk 0:02:28.5]} 13... Bxd5 {[%clk
0:02:55.6]} 14. O-O {[%clk 0:02:04.4]} 14... Re8 {[%clk 0:02:53]} 15. Rad1
{[%clk 0:01:59.6]} 15... Nf6 {[%clk 0:02:48.4]} 16. Nd2 {[%clk 0:01:51.7]} 16...
Bc6 {[%clk 0:02:44.9]} 17. c4 {[%clk 0:01:50.6]} 17... d5 {[%clk 0:02:38]} 18.
cxd5 {[%clk 0:01:47.2]} 18... Nxd5 {[%clk 0:02:38.4]} 19. Qf3 {[%clk 0:01:26.2]}
19... Nf6 {[%clk 0:01:47.2]} 20. Rfe1 {[%clk 0:01:25.8]} 20... Qc7 {[%clk
0:01:40.8]} 21. Qh3 {[%clk 0:01:23.8]} 21... Rad8 {[%clk 0:01:39.8]} 22. f4
{[%clk 0:01:16.4]} 22... Qxf4 {[%clk 0:01:33.8]} 23. Rf1 {[%clk 0:01:10.8]}
23... Qg4 {[%clk 0:01:20.4]} 24. Qe3 {[%clk 0:01:02.6]} 24... Nd5 {[%clk
0:01:11.7]} 25. Qf2 {[%clk 0:01:02.9]} 25... Nf4 {[%clk 0:01:11.4]} 0-1

[Event "*** Titled Tuesday Blitz"]
[Site "Chess.com"]
[Date "2021.04.27"]
[Round "8"]
[White "MFguimaraes"]
[Black "pastouche06"]
[Result "0-1"]
[WhiteElo "2436"]
[BlackElo "2572"]
[TimeControl "180+1"]
[EndTime "11:25:11 PDT"]
[Termination "pastouche06 won by resignation"]

1. e4 {[%clk 0:03:00.9]} 1... c6 {[%clk 0:02:59.5]} 2. Bc4 {[%clk 0:03:00.3]}
2... d5 {[%clk 0:02:59]} 3. Bb3 {[%clk 0:03:01]} 3... dxe4 {[%clk 0:02:56.5]} 4.
Qh5 {[%clk 0:03:01.2]} 4... g6 {[%clk 0:02:56.8]} 5. Qh4 {[%clk 0:03:01.5]} 5...
Bf5 {[%clk 0:02:56.4]} 6. f3 {[%clk 0:03:01.5]} 6... exf3 {[%clk 0:02:41.1]} 7.
Nxf3 {[%clk 0:03:02.4]} 7... e6 {[%clk 0:02:30.5]} 8. Qxd8+ {[%clk 0:02:31.5]}
8... Kxd8 {[%clk 0:02:31.4]} 9. O-O {[%clk 0:02:28.5]} 9... Ke8 {[%clk
0:02:16.9]} 10. d4 {[%clk 0:02:28.4]} 10... Nd7 {[%clk 0:02:12.5]} 11. Nc3
{[%clk 0:02:15.6]} 11... Ngf6 {[%clk 0:02:11.5]} 12. h3 {[%clk 0:02:13.9]} 12...
h5 {[%clk 0:02:08.9]} 13. Bf4 {[%clk 0:02:08.4]} 13... Be7 {[%clk 0:02:04.2]}
14. Rae1 {[%clk 0:02:06.8]} 14... Kf8 {[%clk 0:02:01.9]} 15. Ne5 {[%clk
0:01:43.5]} 15... Kg7 {[%clk 0:02:00]} 16. Bg5 {[%clk 0:01:27.9]} 16... Nxe5
{[%clk 0:01:48.4]} 17. dxe5 {[%clk 0:01:28.8]} 17... Nd5 {[%clk 0:01:48.3]} 18.
Bxe7 {[%clk 0:01:12.7]} 18... Nxe7 {[%clk 0:01:49.2]} 19. Ne4 {[%clk 0:01:13.1]}
19... Bxe4 {[%clk 0:01:48.5]} 20. Rxe4 {[%clk 0:01:14]} 20... Rad8 {[%clk
0:01:40]} 21. Ref4 {[%clk 0:01:10.5]} 21... Rhf8 {[%clk 0:01:33.8]} 22. Kh2
{[%clk 0:01:07.5]} 22... Nf5 {[%clk 0:01:25]} 23. Rb4 {[%clk 0:00:58.4]} 23...
Rd7 {[%clk 0:01:22.1]} 24. g4 {[%clk 0:00:56.6]} 24... hxg4 {[%clk 0:01:17.7]}
25. hxg4 {[%clk 0:00:57.5]} 25... Rd2+ {[%clk 0:01:17.5]} 26. Kg1 {[%clk
0:00:57]} 26... Ne3 {[%clk 0:01:14.9]} 27. Rf3 {[%clk 0:00:45.9]} 27... Rg2+
{[%clk 0:01:13.2]} 0-1

[Event "*** Titled Tuesday Blitz"]
[Site "Chess.com"]
[Date "2021.04.27"]
[Round "8"]
[White "dodorox"]
[Black "Steegersee"]
[Result "1-0"]
[WhiteElo "2129"]
[BlackElo "2185"]
[TimeControl "180+1"]
[EndTime "11:25:18 PDT"]
[Termination "dodorox won on time"]

1. d4 {[%clk 0:03:00.9]} 1... Nf6 {[%clk 0:02:56.2]} 2. c4 {[%clk 0:03:01.1]}
2... e6 {[%clk 0:02:54.7]} 3. Nc3 {[%clk 0:03:00.8]} 3... Bb4 {[%clk 0:02:50.7]}
4. Bd2 {[%clk 0:03:00.1]} 4... O-O {[%clk 0:02:41.6]} 5. e3 {[%clk 0:02:58.7]}
5... b6 {[%clk 0:02:38.9]} 6. Rc1 {[%clk 0:02:56.5]} 6... Bb7 {[%clk 0:02:33.3]}
7. Nf3 {[%clk 0:02:56.5]} 7... Bxc3 {[%clk 0:02:27.7]} 8. Bxc3 {[%clk
0:02:55.1]} 8... Ne4 {[%clk 0:02:28.2]} 9. Bd3 {[%clk 0:02:50.4]} 9... f5 {[%clk
0:02:09.6]} 10. O-O {[%clk 0:02:37.9]} 10... d6 {[%clk 0:01:55.8]} 11. b4 {[%clk
0:02:35.7]} 11... Nd7 {[%clk 0:01:53.5]} 12. Bb2 {[%clk 0:02:18.6]} 12... Qe7
{[%clk 0:01:43.2]} 13. Nd2 {[%clk 0:02:17.5]} 13... Nxd2 {[%clk 0:01:09.6]} 14.
Qxd2 {[%clk 0:02:17]} 14... e5 {[%clk 0:01:08.5]} 15. c5 {[%clk 0:01:21.6]} 1-0

[Event "*** Titled Tuesday Blitz"]
[Site "Chess.com"]
[Date "2021.04.27"]
[Round "8"]
[White "Skat2704"]
[Black "KonstantinB_1983"]
[Result "1-0"]
[WhiteElo "2683"]
[BlackElo "2504"]
[TimeControl "180+1"]
[EndTime "11:25:32 PDT"]
[Termination "Skat2704 won by checkmate"]

1. d4 {[%clk 0:03:00.9]} 1... Nf6 {[%clk 0:02:58.9]} 2. c4 {[%clk 0:02:59.8]}
2... b6 {[%clk 0:02:59.2]} 3. Nf3 {[%clk 0:02:58.7]} 3... Bb7 {[%clk 0:02:59.5]}
4. Nc3 {[%clk 0:02:57.4]} 4... d5 {[%clk 0:02:59.3]} 5. cxd5 {[%clk 0:02:55.7]}
5... Nxd5 {[%clk 0:02:59.7]} 6. e3 {[%clk 0:02:53.2]} 6... Nd7 {[%clk
0:02:58.4]} 7. Bd3 {[%clk 0:02:50.7]} 7... Nxc3 {[%clk 0:02:55]} 8. bxc3 {[%clk
0:02:50.2]} 8... e6 {[%clk 0:02:52]} 9. O-O {[%clk 0:02:48]} 9... Be7 {[%clk
0:02:50.9]} 10. e4 {[%clk 0:02:46.2]} 10... O-O {[%clk 0:02:49.9]} 11. Re1
{[%clk 0:02:46.1]} 11... c5 {[%clk 0:02:49.4]} 12. Bf4 {[%clk 0:02:43.6]} 12...
cxd4 {[%clk 0:02:48.4]} 13. cxd4 {[%clk 0:02:42.4]} 13... Bb4 {[%clk 0:02:48.7]}
14. Re2 {[%clk 0:02:37.3]} 14... Rc8 {[%clk 0:02:45]} 15. Qa4 {[%clk 0:02:34.8]}
15... Bc3 {[%clk 0:02:42.2]} 16. Rd1 {[%clk 0:02:32.1]} 16... Ba5 {[%clk
0:02:37.5]} 17. Bd6 {[%clk 0:02:29.3]} 17... Bc6 {[%clk 0:02:34.1]} 18. Qb3
{[%clk 0:02:22.7]} 18... Re8 {[%clk 0:02:32.5]} 19. Ba6 {[%clk 0:02:23]} 19...
Ra8 {[%clk 0:02:30.9]} 20. Rc1 {[%clk 0:02:16.9]} 20... Bxe4 {[%clk 0:02:10.6]}
21. Rxe4 {[%clk 0:02:13.9]} 21... Nf6 {[%clk 0:02:10.9]} 22. Bc7 {[%clk
0:02:13.1]} 22... Qd7 {[%clk 0:02:05.6]} 23. Re2 {[%clk 0:02:10.9]} 23... Nd5
{[%clk 0:02:04.7]} 24. Be5 {[%clk 0:02:06.9]} 24... f6 {[%clk 0:02:04.1]} 25.
Bb5 {[%clk 0:02:05]} 25... Qe7 {[%clk 0:02:00.7]} 26. Bxe8 {[%clk 0:02:02.8]}
26... fxe5 {[%clk 0:02:00.6]} 27. Bc6 {[%clk 0:02:00.6]} 27... Rc8 {[%clk
0:02:00.6]} 28. Nxe5 {[%clk 0:01:54.9]} 28... Nf4 {[%clk 0:01:58.9]} 29. Rec2
{[%clk 0:01:52.7]} 29... Qg5 {[%clk 0:01:57.6]} 30. g3 {[%clk 0:01:42.6]} 30...
Ne2+ {[%clk 0:01:56.5]} 31. Rxe2 {[%clk 0:01:40.9]} 31... Qxc1+ {[%clk
0:01:55.6]} 32. Kg2 {[%clk 0:01:41.2]} 32... Rxc6 {[%clk 0:01:54.6]} 33. Nxc6
{[%clk 0:01:35.9]} 33... Qxc6+ {[%clk 0:01:54.4]} 34. Qf3 {[%clk 0:01:35.4]}
34... Qd7 {[%clk 0:01:42.5]} 35. Qe4 {[%clk 0:01:29.9]} 35... Kf7 {[%clk
0:01:41.8]} 36. Qxh7 {[%clk 0:01:26.5]} 36... Qxd4 {[%clk 0:01:39.9]} 37. Re3
{[%clk 0:01:23.6]} 37... b5 {[%clk 0:01:14]} 38. Rd3 {[%clk 0:01:20]} 38... Qe5
{[%clk 0:01:00.4]} 39. Rd7+ {[%clk 0:01:17.6]} 39... Kf8 {[%clk 0:00:58.2]} 40.
Qh8# {[%clk 0:01:13.6]} 1-0

[Event "*** Titled Tuesday Blitz"]
[Site "Chess.com"]
[Date "2021.04.27"]
[Round "8"]
[White "Andrakhanova"]
[Black "kritipatel"]
[Result "1-0"]
[WhiteElo "2287"]
[BlackElo "1770"]
[TimeControl "180+1"]
[EndTime "11:25:37 PDT"]
[Termination "Andrakhanova won by checkmate"]

1. c4 {[%clk 0:02:14.6]} 1... e6 {[%clk 0:02:58.1]} 2. g3 {[%clk 0:02:13.7]}
2... Nf6 {[%clk 0:02:56.2]} 3. Bg2 {[%clk 0:02:12.5]} 3... d5 {[%clk 0:02:56.1]}
4. b3 {[%clk 0:02:12.9]} 4... Be7 {[%clk 0:02:54.6]} 5. Bb2 {[%clk 0:02:12.6]}
5... O-O {[%clk 0:02:54.9]} 6. Nf3 {[%clk 0:02:12.7]} 6... c5 {[%clk 0:02:54.7]}
7. cxd5 {[%clk 0:02:12.2]} 7... exd5 {[%clk 0:02:54.3]} 8. d4 {[%clk 0:02:10.8]}
8... Nc6 {[%clk 0:02:51.4]} 9. O-O {[%clk 0:02:07.6]} 9... b6 {[%clk 0:02:50.9]}
10. Nbd2 {[%clk 0:02:06.1]} 10... Bg4 {[%clk 0:02:48.7]} 11. Rc1 {[%clk
0:02:03.6]} 11... Rc8 {[%clk 0:02:48.4]} 12. h3 {[%clk 0:02:03.4]} 12... Be6
{[%clk 0:02:47.4]} 13. e3 {[%clk 0:01:57.6]} 13... Nb4 {[%clk 0:02:45.4]} 14.
dxc5 {[%clk 0:01:52.8]} 14... bxc5 {[%clk 0:02:44.7]} 15. Ne5 {[%clk 0:01:45.8]}
15... Nxa2 {[%clk 0:02:40.8]} 16. Ra1 {[%clk 0:01:45.2]} 16... Nb4 {[%clk
0:02:40.4]} 17. Rxa7 {[%clk 0:01:43.2]} 17... Ra8 {[%clk 0:02:38.9]} 18. Rxa8
{[%clk 0:01:30.5]} 18... Qxa8 {[%clk 0:02:39.8]} 19. Qe2 {[%clk 0:01:26]} 19...
Bc8 {[%clk 0:02:23.7]} 20. Ra1 {[%clk 0:01:24]} 20... Qb8 {[%clk 0:02:21]} 21.
Bc3 {[%clk 0:01:14.7]} 21... Ba6 {[%clk 0:02:15.9]} 22. Rxa6 {[%clk 0:01:11.5]}
22... Nxa6 {[%clk 0:02:03.9]} 23. Qxa6 {[%clk 0:01:12.4]} 23... Rd8 {[%clk
0:01:56.2]} 24. Nc6 {[%clk 0:01:12.3]} 24... Qc7 {[%clk 0:01:48.3]} 25. Ba5
{[%clk 0:01:01.4]} 25... Qd7 {[%clk 0:01:42.2]} 26. Bxd8 {[%clk 0:00:52.8]}
26... Bxd8 {[%clk 0:01:42]} 27. Qa8 {[%clk 0:00:52.4]} 27... g6 {[%clk
0:01:40.1]} 28. Qxd8+ {[%clk 0:00:51.4]} 28... Qxd8 {[%clk 0:01:40.2]} 29. Nxd8
{[%clk 0:00:52.3]} 29... Kg7 {[%clk 0:01:40.8]} 30. Nb7 {[%clk 0:00:47.9]} 30...
c4 {[%clk 0:01:40.3]} 31. bxc4 {[%clk 0:00:46.8]} 31... dxc4 {[%clk 0:01:41.2]}
32. Nxc4 {[%clk 0:00:47.7]} 32... Nd7 {[%clk 0:01:40.2]} 33. f4 {[%clk
0:00:43.9]} 33... f5 {[%clk 0:01:39.1]} 34. Ne5 {[%clk 0:00:36.8]} 34... Nf6
{[%clk 0:01:39]} 35. Nd8 {[%clk 0:00:34.5]} 35... Kh6 {[%clk 0:01:38.9]} 36.
Ndf7+ {[%clk 0:00:31.7]} 36... Kh5 {[%clk 0:01:38.8]} 37. Bf3+ {[%clk
0:00:31.6]} 37... Ng4 {[%clk 0:01:38.2]} 38. hxg4+ {[%clk 0:00:32.2]} 38... fxg4
{[%clk 0:01:38.2]} 39. Bxg4# {[%clk 0:00:33.1]} 1-0